[Event "Early-Titled-Tuesday-Blitz-February-13-2024"]
[Site "Chess.com"]
[Date "2024.02.13"]
[Round "5"]
[White "marik_spb"]
[Black "GoValya"]
[Result "1-0"]
[WhiteElo "2479"]
[BlackElo "2282"]
[TimeControl "180+1"]
[EndTime "8:59:52 PST"]
[Termination "marik_spb won by resignation"]

1. d4 {[%clk 0:02:50.3]} 1... d5 {[%clk 0:02:58.9]} 2. c4 {[%clk 0:02:50.5]}
2... c6 {[%clk 0:02:54.8]} 3. Nf3 {[%clk 0:02:50.4]} 3... Nf6 {[%clk 0:02:54.4]}
4. Nc3 {[%clk 0:02:49.5]} 4... g6 {[%clk 0:02:54.1]} 5. Bg5 {[%clk 0:02:43.9]}
5... Bg7 {[%clk 0:02:47.5]} 6. cxd5 {[%clk 0:02:40.7]} 6... Nxd5 {[%clk
0:02:42.3]} 7. e4 {[%clk 0:02:37.7]} 7... Nxc3 {[%clk 0:02:42.5]} 8. bxc3 {[%clk
0:02:38.6]} 8... Bg4 {[%clk 0:02:19.3]} 9. Be2 {[%clk 0:02:35.5]} 9... c5 {[%clk
0:02:13.5]} 10. Ne5 {[%clk 0:01:38]} 10... Bxe2 {[%clk 0:02:01.3]} 11. Qxe2
{[%clk 0:01:33.7]} 11... cxd4 {[%clk 0:01:26.8]} 12. Qb5+ {[%clk 0:01:33.7]}
12... Nd7 {[%clk 0:01:25.5]} 13. cxd4 {[%clk 0:01:33.9]} 13... Bxe5 {[%clk
0:00:54.4]} 14. dxe5 {[%clk 0:01:34.8]} 14... Qb6 {[%clk 0:00:54.8]} 15. Rb1
{[%clk 0:00:54]} 15... Qxb5 {[%clk 0:00:38.3]} 16. Rxb5 {[%clk 0:00:54.9]} 16...
Nb6 {[%clk 0:00:30.7]} 17. Ke2 {[%clk 0:00:51.8]} 17... h6 {[%clk 0:00:30.4]}
18. Be3 {[%clk 0:00:50.4]} 18... Nc4 {[%clk 0:00:30.4]} 19. Rxb7 {[%clk
0:00:50]} 19... Nxe5 {[%clk 0:00:26]} 20. Rc1 {[%clk 0:00:48.4]} 20... O-O
{[%clk 0:00:13.2]} 21. Bxh6 {[%clk 0:00:47.1]} 21... Rfe8 {[%clk 0:00:12.6]} 22.
Rcc7 {[%clk 0:00:44.3]} 22... a5 {[%clk 0:00:09.6]} 23. Rxe7 {[%clk 0:00:42.6]}
23... Rxe7 {[%clk 0:00:10.5]} 24. Rxe7 {[%clk 0:00:42.2]} 24... Nc6 {[%clk
0:00:10.4]} 25. Rc7 {[%clk 0:00:42.2]} 25... Nb4 {[%clk 0:00:10.4]} 26. a3
{[%clk 0:00:28.3]} 26... Na6 {[%clk 0:00:11]} 27. Rc6 {[%clk 0:00:26.6]} 27...
Ra7 {[%clk 0:00:11.1]} 28. Be3 {[%clk 0:00:24.9]} 28... Ra8 {[%clk 0:00:11.6]}
29. h4 {[%clk 0:00:22.3]} 29... Kf8 {[%clk 0:00:10.6]} 30. g4 {[%clk 0:00:22.2]}
30... Ke7 {[%clk 0:00:10.6]} 31. h5 {[%clk 0:00:18.8]} 31... gxh5 {[%clk
0:00:10.3]} 32. gxh5 {[%clk 0:00:19.7]} 32... Kd7 {[%clk 0:00:10.8]} 33. Rf6
{[%clk 0:00:17.9]} 33... Ke7 {[%clk 0:00:10.2]} 34. Rb6 {[%clk 0:00:15.8]} 34...
Nc7 {[%clk 0:00:09.5]} 35. Rb7 {[%clk 0:00:16]} 35... Kd8 {[%clk 0:00:07.7]} 36.
Bb6 {[%clk 0:00:14.8]} 36... Rc8 {[%clk 0:00:08]} 37. Rxc7 {[%clk 0:00:15.3]}
37... Rxc7 {[%clk 0:00:08.1]} 38. h6 {[%clk 0:00:15.9]} 1-0

[Event "Early-Titled-Tuesday-Blitz-February-13-2024"]
[Site "Chess.com"]
[Date "2024.02.13"]
[Round "5"]
[White "Kaua18"]
[Black "tylityli"]
[Result "0-1"]
[WhiteElo "2530"]
[BlackElo "2303"]
[TimeControl "180+1"]
[EndTime "8:59:53 PST"]
[Termination "tylityli won on time"]

1. e4 {[%clk 0:03:00.9]} 1... e5 {[%clk 0:02:24.5]} 2. Nf3 {[%clk 0:03:00.2]}
2... Nc6 {[%clk 0:02:23.4]} 3. Nc3 {[%clk 0:02:59.6]} 3... Nf6 {[%clk
0:02:22.7]} 4. a3 {[%clk 0:02:58]} 4... d5 {[%clk 0:02:21]} 5. Bd3 {[%clk
0:02:55.4]} 5... dxe4 {[%clk 0:02:17.1]} 6. Nxe4 {[%clk 0:02:56.3]} 6... Nxe4
{[%clk 0:02:16.9]} 7. Bxe4 {[%clk 0:02:55.3]} 7... Be7 {[%clk 0:02:17.5]} 8. O-O
{[%clk 0:02:52.2]} 8... f6 {[%clk 0:02:14.5]} 9. Re1 {[%clk 0:02:41]} 9... O-O
{[%clk 0:02:10.4]} 10. c3 {[%clk 0:02:27.8]} 10... Bg4 {[%clk 0:02:09.1]} 11. h3
{[%clk 0:02:24.7]} 11... Bh5 {[%clk 0:02:07.8]} 12. Qb3+ {[%clk 0:02:22.3]}
12... Bf7 {[%clk 0:02:02.6]} 13. Qxb7 {[%clk 0:02:21.7]} 13... Bd5 {[%clk
0:01:48.2]} 14. Qa6 {[%clk 0:02:14.8]} 14... Bxe4 {[%clk 0:01:41]} 15. Rxe4
{[%clk 0:02:13.8]} 15... Qd5 {[%clk 0:01:41]} 16. d3 {[%clk 0:01:59]} 16... Rab8
{[%clk 0:01:34.7]} 17. b4 {[%clk 0:01:50.5]} 17... f5 {[%clk 0:01:16.5]} 18. Qc4
{[%clk 0:01:47.8]} 18... Rfd8 {[%clk 0:01:11.4]} 19. Qxd5+ {[%clk 0:01:45.1]}
19... Rxd5 {[%clk 0:01:11.4]} 20. Rc4 {[%clk 0:01:45.7]} 20... e4 {[%clk
0:00:47.3]} 21. Rxc6 {[%clk 0:01:37.1]} 21... exf3 {[%clk 0:00:46.3]} 22. Bf4
{[%clk 0:01:23.9]} 22... Rxd3 {[%clk 0:00:40.7]} 23. Rxc7 {[%clk 0:01:23]} 23...
Bf6 {[%clk 0:00:36.2]} 24. Rc1 {[%clk 0:01:18.6]} 24... Re8 {[%clk 0:00:30.4]}
25. Be3 {[%clk 0:00:42.7]} 25... g5 {[%clk 0:00:16.8]} 26. b5 {[%clk 0:00:10.4]}
26... fxg2 {[%clk 0:00:11.6]} 27. Rc2 {[%clk 0:00:04.4]} 27... f4 {[%clk
0:00:10.8]} 28. Bxa7 {[%clk 0:00:04.3]} 28... f3 {[%clk 0:00:08.4]} 29. Rc1
{[%clk 0:00:03.3]} 29... Rd5 {[%clk 0:00:05.9]} 30. Be3 {[%clk 0:00:01.5]} 30...
Red8 {[%clk 0:00:05.6]} 0-1

[Event "Early-Titled-Tuesday-Blitz-February-13-2024"]
[Site "Chess.com"]
[Date "2024.02.13"]
[Round "5"]
[White "GelmanAlexander"]
[Black "Irishchessman16"]
[Result "1-0"]
[WhiteElo "2764"]
[BlackElo "2525"]
[TimeControl "180+1"]
[EndTime "8:59:54 PST"]
[Termination "GelmanAlexander won by checkmate"]

1. d4 {[%clk 0:03:00.9]} 1... f5 {[%clk 0:02:58.8]} 2. Nc3 {[%clk 0:03:00.7]}
2... Nf6 {[%clk 0:02:56.8]} 3. g4 {[%clk 0:02:59.8]} 3... d5 {[%clk 0:02:54.5]}
4. Bf4 {[%clk 0:02:50.3]} 4... fxg4 {[%clk 0:02:49.3]} 5. h3 {[%clk 0:02:50.4]}
5... g3 {[%clk 0:02:44]} 6. Bxg3 {[%clk 0:02:44.4]} 6... Bf5 {[%clk 0:02:39.8]}
7. e3 {[%clk 0:02:31.5]} 7... e6 {[%clk 0:02:32.4]} 8. Bd3 {[%clk 0:02:29.7]}
8... Bd6 {[%clk 0:02:20.9]} 9. Bh4 {[%clk 0:02:24.4]} 9... O-O {[%clk
0:02:15.4]} 10. Nf3 {[%clk 0:02:22.7]} 10... Nc6 {[%clk 0:02:10.2]} 11. Rg1
{[%clk 0:02:21.1]} 11... Qe8 {[%clk 0:01:57.7]} 12. Bxf5 {[%clk 0:02:06.1]}
12... exf5 {[%clk 0:01:57.1]} 13. Bxf6 {[%clk 0:02:06.6]} 13... Rxf6 {[%clk
0:01:54.6]} 14. Nxd5 {[%clk 0:02:06.5]} 14... Rh6 {[%clk 0:01:53.1]} 15. Ng5
{[%clk 0:01:45.1]} 15... Rd8 {[%clk 0:01:40.1]} 16. Qd3 {[%clk 0:01:34.3]} 16...
Bh2 {[%clk 0:01:22.5]} 17. Qc4 {[%clk 0:01:04.4]} 17... Kf8 {[%clk 0:01:02.2]}
18. Rg2 {[%clk 0:00:59.4]} 18... Na5 {[%clk 0:00:48.2]} 19. Qc5+ {[%clk
0:00:56.9]} 19... Rdd6 {[%clk 0:00:33.7]} 20. Qxa5 {[%clk 0:00:44.4]} 20... b6
{[%clk 0:00:25.3]} 21. Qa3 {[%clk 0:00:43.9]} 21... c5 {[%clk 0:00:20.1]} 22. c4
{[%clk 0:00:38.8]} 22... cxd4 {[%clk 0:00:17.7]} 23. Rxh2 {[%clk 0:00:38.7]}
23... dxe3 {[%clk 0:00:15.6]} 24. fxe3 {[%clk 0:00:38.4]} 24... Qh5 {[%clk
0:00:10.9]} 25. Rg2 {[%clk 0:00:27.9]} 25... Qh4+ {[%clk 0:00:10.9]} 26. Ke2
{[%clk 0:00:06.8]} 26... Qxc4+ {[%clk 0:00:11.3]} 27. Qd3 {[%clk 0:00:07.5]}
27... Qc6 {[%clk 0:00:09.9]} 28. Rd1 {[%clk 0:00:06.8]} 28... g6 {[%clk
0:00:08.7]} 29. Qd4 {[%clk 0:00:04.9]} 29... Qb5+ {[%clk 0:00:05.4]} 30. Kf2
{[%clk 0:00:04.4]} 30... Ke8 {[%clk 0:00:03]} 31. Qg7 {[%clk 0:00:03.4]} 31...
Rxh3 {[%clk 0:00:01]} 32. Qe7# {[%clk 0:00:03]} 1-0

[Event "Early-Titled-Tuesday-Blitz-February-13-2024"]
[Site "Chess.com"]
[Date "2024.02.13"]
[Round "5"]
[White "C_K_G"]
[Black "Rozhkov_V"]
[Result "0-1"]
[WhiteElo "2121"]
[BlackElo "2380"]
[TimeControl "180+1"]
[EndTime "8:59:58 PST"]
[Termination "Rozhkov_V won on time"]

1. e4 {[%clk 0:03:00.9]} 1... e6 {[%clk 0:03:00]} 2. Nf3 {[%clk 0:03:00]} 2...
d5 {[%clk 0:02:59.9]} 3. Nc3 {[%clk 0:03:00.9]} 3... d4 {[%clk 0:02:58.8]} 4.
Ne2 {[%clk 0:03:00.2]} 4... c5 {[%clk 0:02:59.3]} 5. c3 {[%clk 0:03:00.7]} 5...
Nf6 {[%clk 0:02:59.8]} 6. e5 {[%clk 0:02:54.9]} 6... Nfd7 {[%clk 0:02:59.9]} 7.
cxd4 {[%clk 0:02:53]} 7... cxd4 {[%clk 0:03:00.8]} 8. Nexd4 {[%clk 0:02:50]}
8... Nxe5 {[%clk 0:03:01.1]} 9. Bb5+ {[%clk 0:02:47.6]} 9... Nec6 {[%clk
0:03:01.3]} 10. Qa4 {[%clk 0:02:33.2]} 10... Bd7 {[%clk 0:02:52.5]} 11. O-O
{[%clk 0:02:13.3]} 11... Bd6 {[%clk 0:02:51.6]} 12. Nxc6 {[%clk 0:01:57.9]}
12... Bxc6 {[%clk 0:02:42.4]} 13. Nd4 {[%clk 0:01:46.2]} 13... Bxb5 {[%clk
0:02:40.2]} 14. Nxb5 {[%clk 0:01:44.3]} 14... Nc6 {[%clk 0:02:40.2]} 15. d4
{[%clk 0:01:39.3]} 15... O-O {[%clk 0:02:37.1]} 16. Be3 {[%clk 0:01:34.2]} 16...
a6 {[%clk 0:02:34.4]} 17. Nxd6 {[%clk 0:01:30.1]} 17... Qxd6 {[%clk 0:02:35.3]}
18. Rac1 {[%clk 0:01:26.2]} 18... Rfd8 {[%clk 0:02:31.7]} 19. g3 {[%clk
0:01:23.1]} 19... h5 {[%clk 0:02:03.6]} 20. Rfd1 {[%clk 0:01:19.9]} 20... h4
{[%clk 0:02:02.8]} 21. Qc4 {[%clk 0:01:00]} 21... hxg3 {[%clk 0:02:00.8]} 22.
hxg3 {[%clk 0:01:00.9]} 22... Rac8 {[%clk 0:01:57.1]} 23. Qc5 {[%clk 0:00:59.2]}
23... Qd5 {[%clk 0:01:50.1]} 24. Qxd5 {[%clk 0:00:55.1]} 24... Rxd5 {[%clk
0:01:49.5]} 25. Rc4 {[%clk 0:00:54.4]} 25... Rcd8 {[%clk 0:01:47.3]} 26. Kg2
{[%clk 0:00:50.7]} 26... e5 {[%clk 0:01:46.5]} 27. a3 {[%clk 0:00:31.1]} 27...
exd4 {[%clk 0:01:45.5]} 28. Bf4 {[%clk 0:00:30.1]} 28... g5 {[%clk 0:01:44.6]}
29. Bd2 {[%clk 0:00:27.2]} 29... R8d7 {[%clk 0:01:38.6]} 30. b4 {[%clk
0:00:25.6]} 30... Kg7 {[%clk 0:01:37.9]} 31. Rdc1 {[%clk 0:00:23.2]} 31... Kg6
{[%clk 0:01:34.3]} 32. Rc5 {[%clk 0:00:20.5]} 32... f6 {[%clk 0:01:32.4]} 33. a4
{[%clk 0:00:20]} 33... Ne5 {[%clk 0:01:28.5]} 34. Rxd5 {[%clk 0:00:14.3]} 34...
Rxd5 {[%clk 0:01:29.4]} 35. Kf1 {[%clk 0:00:12.7]} 35... b5 {[%clk 0:01:26.8]}
36. a5 {[%clk 0:00:12]} 36... Nc4 {[%clk 0:01:26.6]} 37. Ke2 {[%clk 0:00:12.9]}
37... Kf5 {[%clk 0:01:18.2]} 38. Kd3 {[%clk 0:00:13.3]} 38... Rd8 {[%clk
0:01:08.8]} 39. Re1 {[%clk 0:00:12.9]} 39... Ne5+ {[%clk 0:01:07.6]} 40. Ke2
{[%clk 0:00:11.1]} 40... Rc8 {[%clk 0:01:07.7]} 41. Rh1 {[%clk 0:00:07.9]} 41...
Ke4 {[%clk 0:01:05.5]} 42. Rh7 {[%clk 0:00:05.7]} 42... Rc2 {[%clk 0:00:57.1]}
43. Re7 {[%clk 0:00:04.9]} 43... Rb2 {[%clk 0:00:51.4]} 44. f3+ {[%clk
0:00:03.6]} 44... Kd5 {[%clk 0:00:49.4]} 45. f4 {[%clk 0:00:02.5]} 45... Nc4
{[%clk 0:00:49.2]} 0-1

[Event "Early-Titled-Tuesday-Blitz-February-13-2024"]
[Site "Chess.com"]
[Date "2024.02.13"]
[Round "5"]
[White "Alexander_Donchenko"]
[Black "Aslanov_Umid"]
[Result "1/2-1/2"]
[WhiteElo "2921"]
[BlackElo "2681"]
[TimeControl "180+1"]
[EndTime "8:59:59 PST"]
[Termination "Game drawn by repetition"]

1. Nf3 {[%clk 0:02:54.8]} 1... d5 {[%clk 0:03:00]} 2. e3 {[%clk 0:02:54.8]} 2...
Nf6 {[%clk 0:02:59.8]} 3. c4 {[%clk 0:02:55.1]} 3... e6 {[%clk 0:02:59.3]} 4.
Nc3 {[%clk 0:02:55.3]} 4... Be7 {[%clk 0:02:57.3]} 5. b3 {[%clk 0:02:55.4]} 5...
dxc4 {[%clk 0:02:54.9]} 6. bxc4 {[%clk 0:02:53.9]} 6... b6 {[%clk 0:02:55.5]} 7.
Bb2 {[%clk 0:02:53.9]} 7... Bb7 {[%clk 0:02:55.9]} 8. Be2 {[%clk 0:02:52]} 8...
c5 {[%clk 0:02:56.4]} 9. Qc2 {[%clk 0:02:51.1]} 9... O-O {[%clk 0:02:55.6]} 10.
Rg1 {[%clk 0:02:47.9]} 10... Nc6 {[%clk 0:02:39]} 11. g4 {[%clk 0:02:47.8]}
11... Nb4 {[%clk 0:02:39.3]} 12. Qb1 {[%clk 0:02:47.2]} 12... Rc8 {[%clk
0:02:22.5]} 13. g5 {[%clk 0:02:44.9]} 13... Nd7 {[%clk 0:02:17.6]} 14. a3 {[%clk
0:02:43.5]} 14... Bxf3 {[%clk 0:02:16.3]} 15. Bxf3 {[%clk 0:02:20.4]} 15... Ne5
{[%clk 0:02:16.5]} 16. Be4 {[%clk 0:02:20.6]} 16... Nbd3+ {[%clk 0:02:10]} 17.
Bxd3 {[%clk 0:02:03.5]} 17... Qxd3 {[%clk 0:02:09.9]} 18. Rg3 {[%clk 0:01:05]}
18... Rfd8 {[%clk 0:02:09.7]} 19. Ne4 {[%clk 0:00:58.8]} 19... Qxc4 {[%clk
0:02:03.5]} 20. Bxe5 {[%clk 0:00:57.3]} 20... Rd3 {[%clk 0:01:55.2]} 21. Nf6+
{[%clk 0:00:52.1]} 21... Bxf6 {[%clk 0:01:11.2]} 22. gxf6 {[%clk 0:00:53]} 22...
Rcd8 {[%clk 0:01:07.3]} 23. Rxg7+ {[%clk 0:00:46.6]} 23... Kh8 {[%clk
0:00:58.6]} 24. Qd1 {[%clk 0:00:32.4]} 24... Qe4 {[%clk 0:00:46]} 25. Qg4 {[%clk
0:00:09.6]} 25... Qh1+ {[%clk 0:00:16]} 26. Qg1 {[%clk 0:00:09.1]} 26... Qe4
{[%clk 0:00:16.7]} 27. Bc3 {[%clk 0:00:05.2]} 27... Rxc3 {[%clk 0:00:14.7]} 28.
dxc3 {[%clk 0:00:06.1]} 28... Qd3 {[%clk 0:00:15.3]} 29. Qg4 {[%clk 0:00:03]}
29... Qxc3+ {[%clk 0:00:14.4]} 30. Ke2 {[%clk 0:00:03.6]} 30... Rd2+ {[%clk
0:00:08.7]} 31. Kf3 {[%clk 0:00:03.8]} 31... Qxf6+ {[%clk 0:00:09.4]} 32. Qf4
{[%clk 0:00:03.1]} 32... Qxg7 {[%clk 0:00:07.3]} 33. Qb8+ {[%clk 0:00:03.3]}
33... Qg8 {[%clk 0:00:07.3]} 34. Qe5+ {[%clk 0:00:02.4]} 34... Qg7 {[%clk
0:00:07.8]} 35. Qb8+ {[%clk 0:00:03]} 35... Qg8 {[%clk 0:00:08.4]} 36. Qe5+
{[%clk 0:00:03.7]} 36... Qg7 {[%clk 0:00:09]} 37. Qb8+ {[%clk 0:00:04.2]}
1/2-1/2

[Event "Early-Titled-Tuesday-Blitz-February-13-2024"]
[Site "Chess.com"]
[Date "2024.02.13"]
[Round "5"]
[White "AlmasRakhmatullaev"]
[Black "Iskusnyh"]
[Result "1-0"]
[WhiteElo "2879"]
[BlackElo "2655"]
[TimeControl "180+1"]
[EndTime "8:59:59 PST"]
[Termination "AlmasRakhmatullaev won by resignation"]

1. e4 {[%clk 0:03:00.9]} 1... e6 {[%clk 0:02:58.6]} 2. d4 {[%clk 0:02:59.8]}
2... d5 {[%clk 0:02:57.8]} 3. Nc3 {[%clk 0:03:00.5]} 3... Nf6 {[%clk 0:02:57.2]}
4. e5 {[%clk 0:02:58.9]} 4... Nfd7 {[%clk 0:02:56.5]} 5. Nce2 {[%clk 0:02:59.8]}
5... c5 {[%clk 0:02:55.8]} 6. c3 {[%clk 0:03:00]} 6... Nc6 {[%clk 0:02:55.5]} 7.
f4 {[%clk 0:02:59.8]} 7... Be7 {[%clk 0:02:47]} 8. Nf3 {[%clk 0:02:59.5]} 8...
b5 {[%clk 0:02:42.9]} 9. g3 {[%clk 0:02:54.2]} 9... b4 {[%clk 0:02:42.2]} 10.
Bh3 {[%clk 0:02:51.2]} 10... bxc3 {[%clk 0:02:30.4]} 11. bxc3 {[%clk 0:02:52.1]}
11... O-O {[%clk 0:02:20]} 12. O-O {[%clk 0:02:51.5]} 12... Ba6 {[%clk 0:02:00]}
13. Rf2 {[%clk 0:02:46.4]} 13... Nb6 {[%clk 0:01:45.2]} 14. f5 {[%clk
0:02:39.2]} 14... exf5 {[%clk 0:01:44.6]} 15. Bxf5 {[%clk 0:02:35.6]} 15... Bc8
{[%clk 0:01:43.6]} 16. Bd3 {[%clk 0:02:24]} 16... cxd4 {[%clk 0:01:34]} 17.
Nexd4 {[%clk 0:02:23.9]} 17... Nxd4 {[%clk 0:01:28]} 18. Nxd4 {[%clk 0:02:22.6]}
18... Qc7 {[%clk 0:01:26.4]} 19. Bf4 {[%clk 0:02:19.4]} 19... Be6 {[%clk
0:01:12.1]} 20. Rc1 {[%clk 0:02:06.8]} 20... Bc5 {[%clk 0:01:06.4]} 21. Qh5
{[%clk 0:02:00]} 21... g6 {[%clk 0:01:01.4]} 22. Qe2 {[%clk 0:01:59.1]} 22...
Rac8 {[%clk 0:00:54.1]} 23. h4 {[%clk 0:01:57.9]} 23... Na4 {[%clk 0:00:49.9]}
24. h5 {[%clk 0:01:50.3]} 24... Qe7 {[%clk 0:00:49.4]} 25. hxg6 {[%clk
0:01:43.6]} 25... fxg6 {[%clk 0:00:46]} 26. Be3 {[%clk 0:01:38.5]} 26... Rxf2
{[%clk 0:00:35.6]} 27. Qxf2 {[%clk 0:01:39.4]} 27... Rf8 {[%clk 0:00:32]} 28.
Qd2 {[%clk 0:01:38.8]} 28... Nb6 {[%clk 0:00:17.4]} 29. Bh6 {[%clk 0:01:28.6]}
29... Rf7 {[%clk 0:00:15.7]} 30. Bg5 {[%clk 0:01:26]} 30... Qf8 {[%clk
0:00:14.5]} 31. Kg2 {[%clk 0:01:18.9]} 31... Bxd4 {[%clk 0:00:14]} 32. cxd4
{[%clk 0:01:19.1]} 32... Nc4 {[%clk 0:00:14.9]} 33. Qe2 {[%clk 0:01:06]} 33...
Bf5 {[%clk 0:00:14.7]} 34. Bxc4 {[%clk 0:00:58.2]} 34... dxc4 {[%clk 0:00:14.5]}
35. e6 {[%clk 0:00:58.7]} 35... Qa8+ {[%clk 0:00:12.6]} 36. Kg1 {[%clk
0:00:57.6]} 36... Rf8 {[%clk 0:00:12.1]} 37. e7 {[%clk 0:00:55.2]} 37... Re8
{[%clk 0:00:11.5]} 38. Qxc4+ {[%clk 0:00:52.8]} 38... Kg7 {[%clk 0:00:11.8]} 39.
d5 {[%clk 0:00:51.7]} 39... h5 {[%clk 0:00:11]} 40. Qd4+ {[%clk 0:00:49.9]}
40... Kh7 {[%clk 0:00:10.7]} 41. Rc6 {[%clk 0:00:48.7]} 41... Qb7 {[%clk
0:00:09.9]} 42. Qf6 {[%clk 0:00:46.5]} 42... Qb1+ {[%clk 0:00:09.7]} 43. Rc1
{[%clk 0:00:47]} 43... Qd3 {[%clk 0:00:07.4]} 44. Qf7+ {[%clk 0:00:46.6]} 1-0

[Event "Early-Titled-Tuesday-Blitz-February-13-2024"]
[Site "Chess.com"]
[Date "2024.02.13"]
[Round "5"]
[White "Durarbayli"]
[Black "wqws"]
[Result "0-1"]
[WhiteElo "2909"]
[BlackElo "2649"]
[TimeControl "180+1"]
[EndTime "8:59:59 PST"]
[Termination "wqws won by checkmate"]

1. e4 {[%clk 0:03:00.9]} 1... e5 {[%clk 0:02:59.9]} 2. Nf3 {[%clk 0:03:01.2]}
2... Nc6 {[%clk 0:03:00.3]} 3. d4 {[%clk 0:03:01.9]} 3... exd4 {[%clk
0:03:00.3]} 4. Nxd4 {[%clk 0:03:02.8]} 4... Nf6 {[%clk 0:03:00.5]} 5. Nxc6
{[%clk 0:03:03.3]} 5... bxc6 {[%clk 0:03:00.1]} 6. e5 {[%clk 0:03:04.2]} 6...
Qe7 {[%clk 0:02:59.7]} 7. Qe2 {[%clk 0:03:04.8]} 7... Nd5 {[%clk 0:02:59.8]} 8.
h4 {[%clk 0:03:05.5]} 8... a5 {[%clk 0:02:59.6]} 9. c4 {[%clk 0:03:01.6]} 9...
Ba6 {[%clk 0:02:59.2]} 10. Rh3 {[%clk 0:02:58.8]} 10... Nb6 {[%clk 0:02:56.4]}
11. b3 {[%clk 0:02:58.8]} 11... O-O-O {[%clk 0:02:51.5]} 12. Bb2 {[%clk
0:02:51]} 12... g6 {[%clk 0:02:43.2]} 13. Nd2 {[%clk 0:02:48.5]} 13... Bg7
{[%clk 0:02:41.6]} 14. O-O-O {[%clk 0:02:48.6]} 14... Rhe8 {[%clk 0:02:41.5]}
15. Re3 {[%clk 0:02:07.8]} 15... Bh6 {[%clk 0:02:35.1]} 16. Ne4 {[%clk
0:01:40.2]} 16... d5 {[%clk 0:02:14.7]} 17. Ng5 {[%clk 0:01:18.7]} 17... dxc4
{[%clk 0:02:06.1]} 18. bxc4 {[%clk 0:00:53.4]} 18... Bxc4 {[%clk 0:01:51.3]} 19.
Qg4+ {[%clk 0:00:52]} 19... Be6 {[%clk 0:01:46.3]} 20. Rxd8+ {[%clk 0:00:39.1]}
20... Rxd8 {[%clk 0:01:45.3]} 21. Qf3 {[%clk 0:00:28]} 21... Qb4 {[%clk
0:01:24.4]} 22. Bc3 {[%clk 0:00:11.8]} 22... Qxh4 {[%clk 0:01:08.9]} 23. Nxe6
{[%clk 0:00:02.6]} 23... Bxe3+ {[%clk 0:01:07.1]} 24. fxe3 {[%clk 0:00:03.5]}
24... fxe6 {[%clk 0:00:29.6]} 25. Qxc6 {[%clk 0:00:04.1]} 25... Rd7 {[%clk
0:00:25.9]} 26. Ba6+ {[%clk 0:00:03.3]} 26... Kd8 {[%clk 0:00:26.2]} 27. Qxe6
{[%clk 0:00:03.7]} 27... Qh1+ {[%clk 0:00:24.8]} 28. Kb2 {[%clk 0:00:03.5]}
28... Qxg2+ {[%clk 0:00:25]} 29. Ka3 {[%clk 0:00:03.3]} 29... Qd5 {[%clk
0:00:22.6]} 30. Qf6+ {[%clk 0:00:03.6]} 30... Re7 {[%clk 0:00:20.3]} 31. Qf8+
{[%clk 0:00:03.5]} 31... Kd7 {[%clk 0:00:20.6]} 32. Kb2 {[%clk 0:00:03.3]} 32...
Na4+ {[%clk 0:00:20.3]} 33. Kc2 {[%clk 0:00:03.6]} 33... Qxa2+ {[%clk
0:00:20.6]} 34. Bb2 {[%clk 0:00:03.6]} 34... Qxb2+ {[%clk 0:00:20.6]} 35. Kd3
{[%clk 0:00:04.3]} 35... Nc5+ {[%clk 0:00:20.9]} 36. Kc4 {[%clk 0:00:03.4]}
36... Qb4+ {[%clk 0:00:20.9]} 37. Kd5 {[%clk 0:00:03.6]} 37... c6# {[%clk
0:00:21.4]} 0-1

[Event "Early-Titled-Tuesday-Blitz-February-13-2024"]
[Site "Chess.com"]
[Date "2024.02.13"]
[Round "5"]
[White "HaryKane"]
[Black "PavelShkapenko"]
[Result "0-1"]
[WhiteElo "2575"]
[BlackElo "2768"]
[TimeControl "180+1"]
[EndTime "9:00:01 PST"]
[Termination "PavelShkapenko won by resignation"]

1. e4 {[%clk 0:03:00.9]} 1... e5 {[%clk 0:02:54.6]} 2. Nf3 {[%clk 0:03:01.1]}
2... Nc6 {[%clk 0:02:53.3]} 3. Bb5 {[%clk 0:02:59.1]} 3... Bc5 {[%clk 0:02:53]}
4. d3 {[%clk 0:02:58.9]} 4... Nge7 {[%clk 0:02:52.4]} 5. O-O {[%clk 0:02:58]}
5... O-O {[%clk 0:02:52.5]} 6. c3 {[%clk 0:02:58.2]} 6... d6 {[%clk 0:02:51.3]}
7. Nbd2 {[%clk 0:02:51.1]} 7... f5 {[%clk 0:02:50.1]} 8. exf5 {[%clk 0:02:47.6]}
8... Nxf5 {[%clk 0:02:50.3]} 9. Ne4 {[%clk 0:02:45.4]} 9... Bb6 {[%clk
0:02:50.4]} 10. Bg5 {[%clk 0:02:38.4]} 10... Qe8 {[%clk 0:02:49.8]} 11. Re1
{[%clk 0:02:28.8]} 11... Qg6 {[%clk 0:02:39.7]} 12. Nh4 {[%clk 0:02:20.5]} 12...
Nxh4 {[%clk 0:02:37.3]} 13. Bxh4 {[%clk 0:02:21.4]} 13... Bg4 {[%clk 0:02:35]}
14. Qb3+ {[%clk 0:02:17.3]} 14... Kh8 {[%clk 0:02:34.4]} 15. Bg3 {[%clk
0:02:05]} 15... Ne7 {[%clk 0:02:30.9]} 16. a4 {[%clk 0:01:51]} 16... a6 {[%clk
0:02:26.5]} 17. a5 {[%clk 0:01:50.5]} 17... Ba7 {[%clk 0:02:23.4]} 18. Ba4
{[%clk 0:01:43.3]} 18... Rab8 {[%clk 0:02:20.9]} 19. Qa3 {[%clk 0:01:22]} 19...
Nf5 {[%clk 0:02:10.3]} 20. d4 {[%clk 0:01:05.7]} 20... exd4 {[%clk 0:02:07.6]}
21. cxd4 {[%clk 0:01:05.8]} 21... Bxd4 {[%clk 0:02:06.7]} 22. Rac1 {[%clk
0:01:02]} 22... Nxg3 {[%clk 0:02:02.2]} 23. Qxg3 {[%clk 0:01:02.1]} 23... d5
{[%clk 0:01:59.3]} 24. Qd3 {[%clk 0:00:51.8]} 24... c5 {[%clk 0:01:24.1]} 25.
Rxc5 {[%clk 0:00:51.3]} 25... Bxc5 {[%clk 0:01:14.9]} 26. Nxc5 {[%clk
0:00:52.2]} 26... Qxd3 {[%clk 0:01:15]} 27. Nxd3 {[%clk 0:00:53.1]} 27... Rbd8
{[%clk 0:01:02.1]} 28. f3 {[%clk 0:00:44.2]} 28... Bd7 {[%clk 0:01:01.8]} 29.
Nc5 {[%clk 0:00:44.9]} 29... Bxa4 {[%clk 0:01:01.3]} 30. Nxa4 {[%clk 0:00:45.8]}
30... d4 {[%clk 0:01:01.2]} 31. Nc5 {[%clk 0:00:44.5]} 31... Rd5 {[%clk
0:00:57.4]} 32. b4 {[%clk 0:00:43.7]} 32... h6 {[%clk 0:00:54.7]} 33. Kf2 {[%clk
0:00:41.7]} 33... Rfd8 {[%clk 0:00:49.6]} 34. Nd3 {[%clk 0:00:35.5]} 34... R5d6
{[%clk 0:00:44.1]} 35. Re7 {[%clk 0:00:26.2]} 35... R6d7 {[%clk 0:00:43.4]} 36.
Re6 {[%clk 0:00:23.4]} 36... Rc7 {[%clk 0:00:42.5]} 37. Nc5 {[%clk 0:00:20.3]}
37... d3 {[%clk 0:00:40.2]} 38. Ke1 {[%clk 0:00:20.8]} 38... d2+ {[%clk
0:00:39.5]} 39. Kd1 {[%clk 0:00:21.3]} 39... Kg8 {[%clk 0:00:38.8]} 40. Re3
{[%clk 0:00:16.7]} 40... Rd4 {[%clk 0:00:38.5]} 41. Nd3 {[%clk 0:00:16.7]} 41...
Rcd7 {[%clk 0:00:33]} 42. Kxd2 {[%clk 0:00:16.9]} 42... Rxb4 {[%clk 0:00:32.9]}
43. Kc3 {[%clk 0:00:16.9]} 43... Rb5 {[%clk 0:00:32.8]} 44. f4 {[%clk
0:00:13.7]} 44... Rc7+ {[%clk 0:00:30.7]} 45. Kd4 {[%clk 0:00:13]} 45... Rxa5
{[%clk 0:00:30.8]} 46. Ne5 {[%clk 0:00:12.8]} 46... Ra4+ {[%clk 0:00:30.5]} 47.
Kd5 {[%clk 0:00:13.3]} 47... Rxf4 {[%clk 0:00:29.8]} 48. Ng6 {[%clk 0:00:12.5]}
48... Rf5+ {[%clk 0:00:28.4]} 49. Kd6 {[%clk 0:00:12.9]} 49... Rc6+ {[%clk
0:00:27.8]} 50. Kd7 {[%clk 0:00:12.4]} 50... Rxg6 {[%clk 0:00:27.7]} 0-1